bitfinex-derivatives/quotes_BTCF0:USTF0_20241122
["timestamp","ask_amount","ask_price","bid_price","bid_amount"]
[1732235622950,0.2217,98201.0,98200.0,0.25]
[1732235623157,0.003,98201.0,98200.0,0.71548]
[1732235623361,0.053862,98201.0,98200.0,0.41]
[1732235623664,0.051862,98201.0,98200.0,0.13]
[1732235623952,0.052862,98201.0,98200.0,0.13]
[1732235624355,0.052862,98201.0,98200.0,0.134]
[1732235624356,0.050862,98201.0,98200.0,0.134]
[1732235624962,0.053862,98201.0,98200.0,0.13]
[1732235626348,0.001,98201.0,98200.0,0.486343]
[1732235626556,0.003,98201.0,98200.0,0.486343]
[1732235627267,0.002,98201.0,98200.0,0.486343]
[1732235627463,0.003,98201.0,98200.0,0.486343]
[1732235627661,0.003,98201.0,98200.0,0.606343]
[1732235627851,0.003,98201.0,98200.0,0.726343]
[1732235628058,0.002,98201.0,98200.0,0.726343]
[1732235628566,0.002,98201.0,98200.0,0.516343]
[1732235628755,0.052862,98201.0,98200.0,0.210863]
[1732235628956,0.052862,98201.0,98200.0,0.16]
[1732235629660,0.050862,98201.0,98200.0,0.16]
[1732235629862,0.06248381,98201.0,98200.0,0.16]
[1732235630064,0.06248381,98201.0,98200.0,0.516343]
[1732235630065,0.001,98201.0,98200.0,0.516343]
[1732235630257,0.001,98201.0,98200.0,0.726343]
[1732235630453,0.3608,98205.0,98204.0,0.050861]
[1732235630659,0.37142754,98205.0,98204.0,0.340861]
[1732235631658,0.3608,98205.0,98204.0,0.341861]
[1732235632564,0.37129273,98205.0,98204.0,0.341861]
[1732235632962,0.37129273,98205.0,98204.0,0.340861]
[1732235633161,0.37129273,98205.0,98204.0,0.342861]
[1732235633554,0.37329273,98205.0,98204.0,0.340861]
[1732235634164,0.37429273,98205.0,98204.0,0.340861]
[1732235634358,0.37429273,98205.0,98204.0,0.39217839]
[1732235635265,0.01349273,98205.0,98204.0,0.39217839]
[1732235635476,0.003,98205.0,98204.0,0.39217839]
[1732235636070,0.14121652,98214.0,98204.0,0.34131739]
[1732235636071,0.050856,98214.0,98204.0,0.34131739]
[1732235636267,0.050856,98214.0,98213.0,0.050856]
[1732235636466,0.050856,98214.0,98213.0,0.110856]
[1732235636769,0.15172426,98214.0,98213.0,0.110856]
[1732235636982,0.01050774,98214.0,98213.0,0.110856]
[1732235637161,0.00152804,98221.0,98217.0,0.050854]
[1732235637357,0.09036052,98226.0,98220.0,0.3608]
[1732235637566,0.0094,98231.0,98220.0,0.3608]
[1732235637567,0.0102,98234.0,98222.0,0.3608]
[1732235637764,9.153e-05,98236.0,98233.0,0.3608]
[1732235637963,9.153e-05,98236.0,98235.0,0.050844]
[1732235638170,9.153e-05,98236.0,98235.0,0.280844]
[1732235638171,0.06159698,98236.0,98235.0,0.280844]
[1732235638869,0.05093553,98236.0,98235.0,0.280844]
[1732235639065,0.05093553,98236.0,98235.0,0.23]
[1732235639372,0.06158749,98236.0,98235.0,0.07]
[1732235639967,0.06158795,98236.0,98235.0,0.07]
[1732235640272,0.06458795,98236.0,98235.0,0.07]
[1732235640469,0.01374395,98236.0,98235.0,0.120844]
[1732235640767,0.01374395,98236.0,98235.0,0.260844]
[1732235640972,0.00509153,98236.0,98235.0,0.390844]
[1732235641873,0.00509153,98236.0,98235.0,0.696244]
[1732235642068,0.05593553,98236.0,98235.0,0.696244]
[1732235642273,0.05593553,98236.0,98235.0,0.09]
[1732235642566,0.06469517,98236.0,98235.0,0.09]
[1732235643072,0.00309153,98236.0,98235.0,0.140844]
[1732235643261,9.153e-05,98236.0,98235.0,0.420844]
[1732235643463,0.00209153,98236.0,98235.0,0.423844]
[1732235643659,0.00209153,98236.0,98235.0,0.515844]
[1732235644073,0.00309153,98236.0,98235.0,0.56431726]
[1732235644366,0.00509153,98236.0,98235.0,0.56431726]
[1732235644562,0.00209153,98236.0,98235.0,0.86971726]
[1732235644759,0.00509153,98236.0,98235.0,0.86971726]
[1732235645361,0.0047,98250.0,98249.0,0.050837]
[1732235645669,0.00152748,98257.0,98256.0,0.050834]
[1732235645874,0.00152748,98257.0,98256.0,0.290834]
[1732235646071,0.0389,98269.0,98256.0,0.290834]
[1732235646072,0.0389,98269.0,98268.0,0.050827]
[1732235646268,0.0389,98269.0,98268.0,0.060827]
[1732235646467,0.0389,98269.0,98268.0,0.16091931]
[1732235646664,0.050821,98281.0,98268.0,0.46619931]
[1732235646866,0.3608,98283.0,98277.0,0.050822]
[1732235647377,0.050822,98279.0,98277.0,0.050822]
[1732235648074,0.3638,98283.0,98270.0,0.09907125]
[1732235648269,0.3638,98283.0,98274.0,0.050824]
[1732235648465,0.05082,98282.0,98274.0,0.090824]
[1732235648662,0.050823,98277.0,98275.0,0.050823]
[1732235648867,0.050823,98276.0,98275.0,0.03]
[1732235649261,0.003,98279.0,98268.0,9.231e-05]
[1732235649571,0.050824,98276.0,98274.0,0.050824]
[1732235649877,0.050826,98271.0,98269.0,0.09907125]
[1732235650076,0.0399,98270.0,98269.0,0.02]
[1732235651271,0.0429,98270.0,98269.0,0.02]
[1732235651975,0.05419647,98270.0,98269.0,0.02]
[1732235652466,0.05419445,98270.0,98269.0,0.02]
[1732235652671,0.45469445,98270.0,98269.0,0.02]
[1732235652866,0.4659889,98270.0,98269.0,0.02]
[1732235653067,0.46610473,98270.0,98269.0,0.02]
[1732235653267,0.45569445,98270.0,98269.0,0.02]
[1732235653967,0.45569445,98270.0,98269.0,0.03]
[1732235655571,0.46707159,98270.0,98269.0,0.03]
[1732235655974,0.4670716,98270.0,98269.0,0.03]
[1732235656477,0.01529445,98270.0,98269.0,0.29]
[1732235656870,0.01529445,98270.0,98269.0,0.76528]
[1732235657065,0.004,98270.0,98269.0,0.76528]
[1732235658170,0.004,98270.0,98269.0,0.46]
[1732235658678,0.004,98270.0,98269.0,0.51154192]
[1732235660075,0.003,98270.0,98269.0,0.51154192]
[1732235660387,0.003,98270.0,98269.0,0.51354192]
[1732235660974,0.050823,98276.0,98275.0,0.050824]
[1732235661175,0.06225732,98276.0,98275.0,0.290824]
[1732235661475,0.06225958,98276.0,98275.0,0.290824]
[1732235662375,0.06225958,98276.0,98275.0,0.651624]
[1732235662376,0.01143658,98276.0,98275.0,0.651624]
[1732235662679,0.01247673,98276.0,98275.0,0.711624]
[1732235662873,0.001,98276.0,98275.0,0.711624]
[1732235663269,0.01153176,98276.0,98275.0,0.711624]
[1732235663473,0.0365,98283.0,98282.0,0.05082]
[1732235663676,0.04803219,98283.0,98282.0,0.36]
[1732235663888,0.04803219,98283.0,98282.0,0.41082]
[1732235665179,0.0365,98283.0,98282.0,0.41082]
[1732235665385,0.0365,98283.0,98282.0,0.46254104]
[1732235665577,0.00099,98286.0,98285.0,0.050819]
[1732235665776,0.00099,98286.0,98285.0,0.340819]
[1732235667176,0.00299,98286.0,98285.0,0.340819]
[1732235667583,0.002,98286.0,98285.0,0.340819]
[1732235668184,0.053818,98286.0,98285.0,0.340819]
[1732235668386,0.17467275,98286.0,98285.0,0.220819]
[1732235668885,0.08627284,98286.0,98285.0,0.220819]
[1732235669675,0.07933753,98286.0,98285.0,0.220819]
[1732235669877,0.08571018,98286.0,98285.0,0.220819]
[1732235670079,0.10423547,98286.0,98285.0,0.220819]
[1732235671077,0.05341747,98286.0,98285.0,0.220819]
[1732235673684,0.055363,98294.0,98293.0,0.050814]
[1732235673883,0.15106844,98297.0,98296.0,0.050813]
[1732235674186,0.01578682,98304.0,98300.0,0.050811]
[1732235674385,0.0362,98305.0,98304.0,0.050809]
[1732235674581,9.827e-05,98309.0,98308.0,0.050807]
[1732235674780,9.827e-05,98309.0,98308.0,0.500807]
[1732235675589,0.09102079,98309.0,98308.0,0.500807]
[1732235676080,0.09102079,98309.0,98308.0,0.805967]
[1732235676281,0.09092252,98311.0,98308.0,0.75516]
[1732235676593,0.09092252,98313.0,98312.0,0.050805]
[1732235676784,0.09092252,98313.0,98312.0,0.500805]
[1732235676986,0.09092252,98314.0,98312.0,0.805965]
[1732235677285,0.09086915,98314.0,98313.0,0.3608]
[1732235677491,0.09086915,98315.0,98313.0,1.15596]
[1732235677680,0.0377,98324.0,98313.0,1.15596]
[1732235677681,0.09086915,98317.0,98316.0,0.050803]
[1732235677886,0.09082059,98318.0,98316.0,0.612123]
[1732235678077,0.0377,98324.0,98316.0,0.612123]
[1732235678078,0.09082059,98319.0,98316.0,0.612123]
[1732235678279,0.09082112,98319.0,98316.0,0.56132]
[1732235678484,0.09082112,98320.0,98316.0,0.56132]
[1732235678791,0.09082112,98320.0,98319.0,0.050801]
[1732235678986,0.09082112,98320.0,98319.0,0.480801]
[1732235679688,0.0508,98320.0,98319.0,0.17]
[1732235679990,0.0528,98320.0,98319.0,0.17]
[1732235680188,0.05915106,98320.0,98319.0,0.17]
[1732235680583,0.41995106,98320.0,98319.0,0.17]
[1732235680784,0.42095106,98320.0,98319.0,0.17]
[1732235681294,0.37015106,98320.0,98319.0,0.09]
[1732235681484,0.42095106,98320.0,98319.0,0.09]
[1732235681892,0.42095106,98320.0,98319.0,0.36]
[1732235682580,0.42095106,98320.0,98319.0,0.410801]
[1732235682785,0.42095106,98320.0,98319.0,0.120801]
[1732235683493,0.42095106,98320.0,98319.0,0.420801]
[1732235683694,0.45307084,98320.0,98319.0,0.08]
[1732235684290,0.45942206,98320.0,98319.0,0.08]
[1732235684700,0.45942206,98320.0,98319.0,0.18]
[1732235685696,0.45942206,98320.0,98307.0,0.09128]
[1732235685697,0.050806,98310.0,98307.0,0.09128]
[1732235685997,0.4694606,98320.0,98307.0,0.12128]
[1732235685998,0.0562681,98309.0,98307.0,0.12128]
[1732235686196,0.4170681,98308.0,98307.0,0.08]
[1732235686696,0.4170681,98308.0,98307.0,0.2]
[1732235686697,0.0562681,98308.0,98307.0,0.2]
[1732235686893,0.05657192,98308.0,98307.0,0.201]
[1732235687101,0.05657192,98308.0,98307.0,0.322]
[1732235687594,0.05657192,98308.0,98307.0,0.323]
[1732235688193,0.04386896,98308.0,98307.0,0.323]
[1732235689001,0.04386896,98308.0,98307.0,0.523]
[1732235689204,0.01144604,98308.0,98307.0,0.523]
[1732235689700,0.01244604,98308.0,98307.0,0.52]
[1732235690204,0.01244604,98308.0,98307.0,0.526]
[1732235690502,0.01244604,98308.0,98307.0,0.529]
[1732235692398,0.01244604,98308.0,98307.0,0.83416]
[1732235692599,0.0149,98322.0,98321.0,0.0508]
[1732235692899,0.3608,98343.0,98321.0,0.76220585]
[1732235692900,0.01827819,98323.0,98321.0,0.76220585]
[1732235693099,0.09088589,98332.0,98322.0,0.0405]
[1732235693305,0.3991,98343.0,98322.0,0.0405]
[1732235693306,0.09241184,98339.0,98338.0,0.050791]
[1732235693602,0.03335433,98339.0,98338.0,0.21]
[1732235694205,0.03970464,98339.0,98338.0,0.21]
[1732235695205,0.03335433,98339.0,98338.0,0.21]
[1732235695508,0.03535433,98339.0,98338.0,0.21]
[1732235695910,0.03435433,98339.0,98338.0,0.21]
[1732235696096,0.03635433,98339.0,98338.0,0.21]
[1732235696514,0.03435433,98339.0,98338.0,0.21]
[1732235696706,0.03635433,98339.0,98338.0,0.21]
[1732235697207,0.08714533,98339.0,98338.0,0.21]
[1732235697413,0.17704816,98339.0,98338.0,0.21]
[1732235697603,0.08714533,98339.0,98338.0,0.21]
[1732235698406,0.1780571,98339.0,98338.0,0.21]
[1732235698609,0.08714533,98339.0,98338.0,0.21]
[1732235700213,0.06905502,98339.0,98338.0,0.21]
[1732235700419,0.08709784,98339.0,98338.0,0.21]
[1732235701714,0.03630684,98339.0,98338.0,0.370791]
[1732235702115,0.03630684,98339.0,98338.0,0.500791]
[1732235702321,0.003,98339.0,98338.0,0.500791]
[1732235703313,0.001,98339.0,98338.0,0.500791]
[1732235703517,0.003,98339.0,98338.0,0.500791]
[1732235703912,0.001,98339.0,98338.0,0.500791]
[1732235704215,0.003,98339.0,98338.0,0.55153908]
[1732235704415,0.003,98339.0,98338.0,0.29153908]
[1732235704615,0.01372818,98339.0,98338.0,0.40153908]
[1732235704810,0.01372818,98339.0,98338.0,0.3]
[1732235705813,0.01172818,98339.0,98338.0,0.54114931]
[1732235706014,0.01372818,98339.0,98338.0,0.54114931]
[1732235706412,0.003,98339.0,98338.0,0.54114931]
[1732235706819,0.003,98339.0,98338.0,0.24114931]
[1732235707119,0.05079,98340.0,98338.0,0.35114931]
[1732235707423,0.05079,98340.0,98338.0,0.302]
[1732235708915,0.01061024,98339.0,98338.0,0.3]
[1732235709121,0.01161024,98339.0,98338.0,0.3]
[1732235709319,0.001,98339.0,98338.0,0.3]
[1732235709516,0.01161474,98339.0,98338.0,0.3]
[1732235709817,0.01061474,98339.0,98338.0,0.2]
[1732235710317,0.01261474,98339.0,98338.0,0.2]
[1732235710711,0.01361474,98339.0,98338.0,0.2]
[1732235710910,0.01361474,98339.0,98338.0,0.19]
[1732235711116,0.01361474,98339.0,98338.0,0.46]
[1732235711326,0.01361474,98339.0,98338.0,0.33]
[1732235713125,0.3638,98339.0,98338.0,0.33]
[1732235713329,0.3618,98339.0,98338.0,0.21]
[1732235713517,0.3638,98339.0,98338.0,0.21]
[1732235713718,0.3628,98339.0,98338.0,0.21]
[1732235713918,0.3618,98339.0,98338.0,0.21]
[1732235714120,0.37439336,98339.0,98338.0,0.21]
[1732235714926,0.01359336,98339.0,98338.0,0.21]
[1732235716021,0.01259336,98339.0,98338.0,0.21]
[1732235716221,0.003,98339.0,98338.0,0.21]
[1732235716428,0.003,98339.0,98338.0,0.36]
[1732235717134,0.01346313,98339.0,98338.0,0.38]
[1732235717314,0.003,98339.0,98338.0,0.46]
[1732235718219,0.003,98339.0,98338.0,0.38]
[1732235718425,0.003,98339.0,98338.0,0.46]
[1732235719026,0.003,98339.0,98338.0,0.19]
[1732235719219,0.003,98339.0,98338.0,0.23]
[1732235719415,0.001,98339.0,98338.0,0.23]
[1732235719616,0.6996,98339.0,98329.0,1e-06]
[1732235719836,0.6996,98339.0,98329.0,0.00666352]
[1732235719837,0.411595,98330.0,98329.0,0.00666352]
[1732235720026,0.050799,98322.0,98321.0,0.00012585]
[1732235720322,0.42181194,98322.0,98321.0,0.21012585]
[1732235721425,0.050799,98324.0,98321.0,0.21012585]
[1732235721626,0.050798,98325.0,98321.0,0.21012585]
[1732235721828,0.050799,98323.0,98321.0,0.21012585]
[1732235722217,0.001,98322.0,98321.0,0.21012585]
[1732235722529,0.002,98324.0,98321.0,0.54012585]
[1732235722716,0.00072,98330.0,98321.0,0.54012585]
[1732235722922,0.0008,98339.0,98328.0,0.3608]
[1732235723122,0.055489,98343.0,98337.0,0.050791]
[1732235723123,0.050789,98343.0,98337.0,0.050791]
[1732235723327,0.050789,98343.0,98337.0,0.550791]
[1732235723519,0.36152,98349.0,98339.0,0.3608]
[1732235723520,0.411586,98349.0,98339.0,0.3608]
[1732235723720,0.0047,98354.0,98340.0,0.09152]
[1732235723930,0.00086804,98361.0,98344.0,0.09907125]
[1732235723931,0.3608,98360.0,98344.0,0.09907125]
[1732235724137,0.3608,98360.0,98344.0,0.56907125]
[1732235724329,0.050785,98351.0,98345.0,0.050787]
[1732235724638,0.3608,98360.0,98345.0,0.43]
[1732235724639,0.050786,98349.0,98345.0,0.43]
[1732235724824,0.3608,98360.0,98345.0,0.43]
[1732235725134,0.050782,98356.0,98351.0,0.050784]
[1732235725430,0.050781,98359.0,98353.0,0.050783]
[1732235725630,0.050781,98358.0,98354.0,0.0374]
[1732235725929,0.002,98360.0,98356.0,0.3608]
[1732235726229,0.0047,98372.0,98370.0,0.050774]
[1732235726430,0.0149,98386.0,98371.0,0.3608]
[1732235726735,0.3655,98394.0,98384.0,0.3608]
[1732235726736,0.050763,98393.0,98384.0,0.3608]
[1732235726935,0.0047,98394.0,98392.0,0.3608]
[1732235727126,0.0047,98394.0,98393.0,7.697e-05]
[1732235727429,0.0047,98394.0,98393.0,0.19007697]
[1732235727625,0.0051,98396.0,98394.0,0.050762]
[1732235727825,0.0024,98417.0,98394.0,0.52488]
[1732235728030,0.0024,98423.0,98407.0,0.050755]
[1732235728337,0.050752,98415.0,98409.0,0.050754]
[1732235728521,0.3608,98438.0,98412.0,0.3608]
[1732235728522,0.09097301,98418.0,98412.0,0.3608]
[1732235728727,0.09097301,98426.0,98420.0,0.050749]
[1732235729035,0.09097301,98429.0,98420.0,0.230749]
[1732235729232,0.3608,98430.0,98420.0,0.230749]
[1732235729434,0.050745,98428.0,98420.0,0.591549]
[1732235729939,7.313e-05,98431.0,98420.0,0.5408]
[1732235730133,0.001,98429.0,98424.0,0.050746]
[1732235730341,0.001,98429.0,98424.0,0.18]
[1732235730342,0.051745,98429.0,98424.0,0.18]
[1732235730929,0.002,98429.0,98424.0,0.18]
[1732235731133,0.050746,98425.0,98424.0,0.18]
[1732235731335,0.411546,98425.0,98424.0,0.18]
[1732235731628,0.411546,98425.0,98424.0,0.18562226]
[1732235732342,0.411546,98425.0,98424.0,0.02771876]
[1732235732637,0.412546,98425.0,98424.0,0.02771876]
[1732235732935,0.414546,98425.0,98424.0,0.02771876]
[1732235733933,0.3638,98425.0,98424.0,0.02771876]
[1732235734528,0.3638,98425.0,98424.0,0.03333298]
[1732235734728,0.003,98425.0,98424.0,0.03333298]
[1732235736537,0.003,98425.0,98424.0,0.02771876]
[1732235739032,0.3638,98425.0,98424.0,0.02771876]
[1732235739236,0.77124,98425.0,98411.0,0.0024]
[1732235739433,0.77124,98425.0,98411.0,0.19]
[1732235739434,0.3608,98412.0,98411.0,0.19]
[1732235740737,0.3608,98412.0,98411.0,0.18]
[1732235741231,0.3618,98412.0,98411.0,0.18]
[1732235741424,0.3638,98412.0,98411.0,0.18]
[1732235742427,0.3618,98412.0,98411.0,0.18]
[1732235742633,0.3638,98412.0,98411.0,0.18]
[1732235743024,0.3608,98412.0,98411.0,0.18]
[1732235743228,0.66864,98412.0,98411.0,0.10771877]
[1732235743427,0.66864,98412.0,98397.0,0.0071]
[1732235743428,0.05076,98398.0,98397.0,0.0071]
[1732235743629,0.46344,98398.0,98397.0,0.19]
[1732235743835,0.81908,98398.0,98397.0,0.19]
[1732235744034,0.050762,98394.0,98393.0,7.697e-05]
[1732235744233,0.411562,98394.0,98393.0,0.20007697]
[1732235744537,0.411562,98394.0,98383.0,0.0071]
[1732235744538,0.050767,98385.0,98383.0,0.0071]
[1732235744735,1.02632569,98394.0,98383.0,0.0071]
[1732235744736,0.3608,98384.0,98383.0,0.156127]
[1732235745038,0.050778,98364.0,98363.0,0.3]
[1732235745233,0.772378,98364.0,98363.0,0.2]
[1732235745631,0.772378,98364.0,98363.0,0.20012691]
[1732235745927,0.78238227,98364.0,98363.0,0.20012691]
[1732235746240,0.83331105,98364.0,98363.0,0.20012691]
[1732235746624,0.83325512,98364.0,98363.0,0.20012691]
[1732235747029,0.78432653,98364.0,98363.0,0.20012691]
[1732235747227,0.774378,98364.0,98363.0,0.20012691]
[1732235747441,0.775378,98364.0,98363.0,0.20012691]
[1732235748037,0.46644,98364.0,98363.0,0.20012691]
[1732235748334,0.3608,98369.0,98368.0,0.050776]
[1732235748529,0.3608,98369.0,98368.0,0.250776]
[1732235749131,0.2988,98369.0,98368.0,0.250776]
[1732235749438,0.3608,98378.0,98373.0,0.050773]
[1732235749640,0.3608,98378.0,98373.0,0.250773]
[1732235750145,0.3608,98378.0,98373.0,0.2]
[1732235750441,0.00152531,98384.0,98379.0,0.05077]
[1732235750634,0.00152531,98384.0,98379.0,0.26077]
[1732235750828,0.00152531,98384.0,98379.0,0.21]
[1732235751939,0.36232531,98384.0,98379.0,0.21]
[1732235752143,0.050768,98383.0,98379.0,0.21]
[1732235752636,0.36432531,98384.0,98379.0,0.21]
[1732235752831,0.050769,98381.0,98379.0,0.21]
[1732235753337,0.00993151,98380.0,98379.0,0.21]
[1732235753541,0.00990437,98380.0,98379.0,0.21]
[1732235753739,0.31486437,98380.0,98379.0,0.21]
[1732235754040,0.31486437,98380.0,98379.0,0.148]
[1732235754041,0.61486437,98380.0,98379.0,0.148]
[1732235754540,0.60496,98380.0,98379.0,0.148]
[1732235754934,1.80496,98380.0,98379.0,0.148]
[1732235755237,0.050778,98364.0,98363.0,0.00012691]
[1732235755438,0.514258,98364.0,98363.0,0.22012691]
[1732235756838,0.515258,98364.0,98363.0,0.22012691]
[1732235757647,0.516258,98364.0,98363.0,0.22012691]
[1732235758237,0.515258,98364.0,98363.0,0.22012691]
[1732235758439,0.516258,98364.0,98363.0,0.22012691]
[1732235758642,0.3628,98364.0,98363.0,0.22012691]
[1732235758832,0.001,98364.0,98363.0,0.27090491]
[1732235759036,0.3608,98371.0,98363.0,0.22012691]
[1732235759239,0.3608,98371.0,98363.0,0.50090491]
[1732235759240,0.001,98364.0,98363.0,0.50090491]
[1732235759542,1.50072,98375.0,98369.0,0.050775]
[1732235759543,0.00072,98375.0,98369.0,0.050775]
[1732235759742,0.3616,98380.0,98369.0,0.26]
[1732235760044,0.3608,98380.0,98373.0,0.050773]
[1732235760242,0.3608,98380.0,98374.0,0.050772]
[1732235760437,0.05229331,98384.0,98374.0,0.21]
[1732235760639,0.05229331,98384.0,98376.0,0.050771]
[1732235760840,0.05229331,98384.0,98376.0,0.260771]
[1732235761034,0.00152531,98384.0,98381.0,0.050769]
[1732235761348,0.00152531,98384.0,98382.0,0.050768]
[1732235761534,0.00152531,98384.0,98383.0,0.3608]
[1732235761741,0.0071,98393.0,98383.0,0.6608]
[1732235761942,0.1082,98405.0,98385.0,0.050767]
[1732235761943,0.050763,98392.0,98385.0,0.050767]
[1732235762238,0.1082,98405.0,98385.0,0.2]
[1732235762239,0.050764,98391.0,98385.0,0.2]
[1732235762441,0.05076,98398.0,98385.0,0.26]
[1732235762743,0.1082,98403.0,98391.0,0.050764]
[1732235762947,0.1082,98403.0,98391.0,0.2]
[1732235763135,0.050762,98396.0,98391.0,0.2]
[1732235763847,0.469,98404.0,98391.0,0.2]
[1732235764039,0.050763,98393.0,98391.0,0.2]
[1732235765643,0.051763,98393.0,98391.0,0.2]
[1732235767248,0.050763,98393.0,98391.0,0.2]
[1732235767436,0.051763,98393.0,98391.0,0.2]
[1732235767840,0.050762,98396.0,98391.0,0.2]
[1732235768042,0.0071,98406.0,98391.0,0.2]
[1732235768043,0.001,98393.0,98391.0,0.2]
[1732235768248,0.001,98393.0,98391.0,0.250764]
[1732235768449,0.001,98393.0,98392.0,0.050763]
[1732235768648,0.0071,98406.0,98392.0,0.21]
[1732235768649,0.050758,98404.0,98392.0,0.21]
[1732235768845,0.050759,98401.0,98394.0,0.3608]
[1732235769040,0.001,98396.0,98394.0,0.5608]
[1732235770051,0.001,98396.0,98394.0,0.5708]
[1732235770247,0.001,98396.0,98394.0,0.5808]
[1732235770451,0.051762,98396.0,98394.0,0.22]
[1732235770753,0.050762,98396.0,98394.0,0.2]
[1732235770953,0.41304,98395.0,98394.0,0.2]
[1732235771152,0.41304,98395.0,98394.0,0.135472]
[1732235771355,0.71304,98395.0,98394.0,0.086603]
[1732235771545,0.050771,98378.0,98377.0,0.0047]
[1732235771742,0.525331,98378.0,98377.0,0.21]
[1732235771954,0.830291,98378.0,98377.0,0.21]
[1732235773653,0.830291,98378.0,98377.0,0.158095]
[1732235773654,1.22980256,98378.0,98377.0,0.158095]
[1732235774153,0.050778,98364.0,98357.0,0.32]
[1732235774352,0.411578,98364.0,98363.0,0.18012691]
[1732235774545,0.5328619,98364.0,98363.0,0.18012691]
[1732235774746,0.411578,98364.0,98363.0,0.18012691]
[1732235775846,0.412578,98364.0,98363.0,0.18012691]
[1732235776647,0.37185288,98364.0,98363.0,0.18012691]
[1732235776849,0.01105288,98364.0,98363.0,0.54092691]
[1732235777047,0.001,98364.0,98363.0,0.54092691]
[1732235777249,0.001,98364.0,98363.0,0.59170491]
[1732235777452,0.001,98364.0,98363.0,0.54092691]
[1732235777847,0.15903258,98378.0,98363.0,0.54092691]
[1732235778043,0.00999044,98377.0,98363.0,0.54092691]
[1732235778256,0.00999044,98377.0,98368.0,0.050776]
[1732235778257,0.00999044,98376.0,98368.0,0.050776]
[1732235778458,0.09096158,98374.0,98368.0,0.250776]
[1732235778757,0.00999044,98373.0,98368.0,0.250776]
[1732235778957,0.09096158,98374.0,98368.0,0.250776]
[1732235779253,0.050775,98369.0,98368.0,0.2]
[1732235779453,0.00993531,98369.0,98368.0,0.2]
[1732235780358,0.14173458,98374.0,98368.0,0.2]
[1732235780657,0.10088028,98373.0,98368.0,0.2]
[1732235780953,0.001,98369.0,98368.0,0.2]
[1732235781147,0.02031662,98379.0,98368.0,0.2]
[1732235781148,0.09096158,98376.0,98368.0,0.2]
[1732235781355,0.001,98369.0,98368.0,0.2]
[1732235781557,0.01103494,98369.0,98368.0,0.2]
[1732235781760,0.01003494,98369.0,98368.0,0.2]
[1732235783064,0.001,98373.0,98368.0,0.2]
[1732235783362,0.01011035,98372.0,98368.0,0.2]
[1732235783559,0.001,98369.0,98368.0,0.2]
[1732235783956,0.050775,98370.0,98368.0,0.2]
[1732235784155,0.3618,98369.0,98368.0,0.2]
[1732235784352,0.37189077,98369.0,98368.0,0.2]
[1732235784564,0.37089077,98369.0,98368.0,0.2]
[1732235784757,0.37189077,98369.0,98368.0,0.2]
[1732235785357,0.46288288,98369.0,98368.0,0.2]
[1732235785563,0.37189077,98369.0,98368.0,0.2]
[1732235785955,0.49317467,98369.0,98368.0,0.2]
[1732235786164,0.37189077,98369.0,98368.0,0.2]
[1732235786460,0.37198803,98369.0,98368.0,0.2]
[1732235786660,0.37198803,98369.0,98368.0,0.04761964]
[1732235786860,0.01118803,98369.0,98368.0,0.04761964]
[1732235787167,0.10218197,98369.0,98368.0,0.45919564]
[1732235787378,0.001,98369.0,98368.0,0.45919564]
[1732235788251,0.001,98369.0,98368.0,0.40841964]
[1732235789063,0.01101865,98369.0,98368.0,0.40841964]
[1732235789771,0.06185134,98369.0,98368.0,0.40841964]
[1732235790157,0.01107634,98369.0,98368.0,0.40841964]
[1732235791462,0.09251937,98384.0,98368.0,0.73337964]
[1732235791656,0.00996308,98383.0,98378.0,0.3608]
[1732235791965,0.00152543,98384.0,98383.0,0.050768]
[1732235792164,0.00152543,98384.0,98383.0,0.240768]
[1732235792671,0.050763,98393.0,98387.0,0.050766]
[1732235792866,0.050763,98393.0,98389.0,0.3608]
[1732235793165,0.050763,98393.0,98390.0,0.0374]
[1732235793362,0.050763,98393.0,98390.0,0.2174]
[1732235794068,0.10829394,98402.0,98391.0,0.3608]
[1732235794262,0.09099394,98402.0,98401.0,0.3608]
[1732235794457,0.050758,98403.0,98401.0,0.21]
[1732235795062,0.14175194,98403.0,98401.0,0.21]
[1732235795265,0.050758,98403.0,98401.0,0.21]
[1732235796371,0.001,98402.0,98401.0,0.21]
[1732235796666,0.02130878,98402.0,98401.0,0.21]
[1732235796868,0.02030878,98402.0,98401.0,0.21]
[1732235797468,0.001,98403.0,98401.0,0.21]
[1732235798870,0.001,98403.0,98402.0,0.005618]
[1732235799169,0.001,98403.0,98402.0,0.195618]
[1732235799969,0.001,98403.0,98402.0,0.19]
[1732235801174,0.001,98403.0,98402.0,0.19560384]
[1732235803461,0.09199394,98403.0,98402.0,0.19560384]
[1732235803772,0.09199394,98403.0,98402.0,0.19570848]
[1732235803773,0.001,98403.0,98402.0,0.19570848]
[1732235803970,0.09191534,98403.0,98402.0,0.19570848]
[1732235804469,0.001,98403.0,98402.0,0.19570848]
[1732235805568,0.09125054,98403.0,98402.0,0.19570848]
[1732235806068,0.21258019,98403.0,98402.0,0.19570848]
[1732235806259,0.51742301,98403.0,98402.0,0.19570848]
[1732235806466,0.69613054,98403.0,98382.0,0.65136]
[1732235806669,0.050767,98386.0,98382.0,0.5508]
[1732235806867,0.22035336,98400.0,98382.0,0.5508]
[1732235806868,0.171845,98389.0,98382.0,0.5508]
[1732235807166,0.050766,98388.0,98382.0,0.5508]
[1732235807369,0.050768,98384.0,98382.0,0.5508]
[1732235808866,0.050768,98384.0,98382.0,0.5548]
[1732235809371,0.3608,98383.0,98382.0,0.192]